[Event "MCR rapid mládeže 2023 U16"]
[Site "Harachov, Czech Republic"]
[Date "2023.09.09"]
[Round "4.27"]
[White "Tepla, Ema"]
[Black "Strazhnyk, Viktoriia"]
[Result "0-1"]
[TimeControl "20min+5s/move"]
[WhiteElo "1049"]
[BlackElo "1392"]

1. e4 {[%clk 00:20:08]} {[%emt 00:00:01]} e6 {[%clk 00:20:08]} {[%emt
00:00:02]} 2. d4 {[%clk 00:20:11]} {[%emt 00:00:02]} d5 {[%clk 00:20:12]}
{[%emt 00:00:02]} 3. Nc3 {[%clk 00:20:14]} {[%emt 00:00:02]} Bb4 {[%clk
00:20:10]} {[%emt 00:00:06]} 4. e5 {[%clk 00:20:12]} {[%emt 00:00:08]} c5
{[%clk 00:20:11]} {[%emt 00:00:04]} 5. a3 {[%clk 00:20:15]} {[%emt 00:00:02]}
Bxc3+ {[%clk 00:20:11]} {[%emt 00:00:05]} 6. bxc3 {[%clk 00:20:18]} {[%emt
00:00:01]} Qb6 {[%clk 00:19:36]} {[%emt 00:00:36]} 7. Nf3 {[%clk 00:20:02]}
{[%emt 00:00:26]} Ne7 {[%clk 00:19:24]} {[%emt 00:00:16]} 8. Be3 {[%clk
00:20:01]} {[%emt 00:00:07]} cxd4 {[%clk 00:19:21]} {[%emt 00:00:07]} 9. cxd4
{[%clk 00:19:57]} {[%emt 00:00:09]} Nf5 {[%clk 00:19:21]} {[%emt 00:00:05]} 10.
Bd3 {[%clk 00:19:46]} {[%emt 00:00:16]} Nxe3 {[%clk 00:19:16]} {[%emt
00:00:10]} 11. fxe3 {[%clk 00:19:48]} {[%emt 00:00:03]} Nc6 {[%clk 00:19:16]}
{[%emt 00:00:04]} 12. O-O {[%clk 00:19:46]} {[%emt 00:00:09]} g6 {[%clk
00:18:54]} {[%emt 00:00:26]} 13. Ng5 {[%clk 00:19:12]} {[%emt 00:00:39]} O-O
{[%clk 00:18:43]} {[%emt 00:00:15]} 14. Rf2 {[%clk 00:18:30]} {[%emt 00:00:48]}
Bd7 {[%clk 00:18:40]} {[%emt 00:00:08]} 15. Qf1 {[%clk 00:18:25]} {[%emt
00:00:10]} Be8 {[%clk 00:18:02]} {[%emt 00:00:42]} 16. Nxe6 {[%clk 00:18:00]}
{[%emt 00:00:31]} Bd7 {[%clk 00:17:36]} {[%emt 00:00:31]} 17. Nxf8 {[%clk
00:17:52]} {[%emt 00:00:13]} Rxf8 {[%clk 00:17:38]} {[%emt 00:00:04]} 18. Rb1
{[%clk 00:15:56]} {[%emt 00:02:00]} Qc7 {[%clk 00:17:35]} {[%emt 00:00:09]} 19.
c4 {[%clk 00:15:30]} {[%emt 00:00:31]} Be6 {[%clk 00:17:15]} {[%emt 00:00:24]}
20. Rf6 {[%clk 00:14:50]} {[%emt 00:00:45]} Na5 {[%clk 00:16:36]} {[%emt
00:00:43]} 21. c5 {[%clk 00:14:07]} {[%emt 00:00:49]} Nc4 {[%clk 00:16:29]}
{[%emt 00:00:12]} 22. Bxc4 {[%clk 00:13:43]} {[%emt 00:00:30]} dxc4 {[%clk
00:16:31]} {[%emt 00:00:02]} 23. Qf3 {[%clk 00:13:29]} {[%emt 00:00:19]} b6
{[%clk 00:16:27]} {[%emt 00:00:10]} 24. d5 {[%clk 00:13:07]} {[%emt 00:00:26]}
Bf5 {[%clk 00:16:06]} {[%emt 00:00:21]} 25. Qg3 {[%clk 00:12:15]} {[%emt
00:01:02]} Bxb1 {[%clk 00:15:20]} {[%emt 00:00:51]} 26. Rc6 {[%clk 00:11:37]}
{[%emt 00:00:43]} Qd7 {[%clk 00:15:08]} {[%emt 00:00:12]} 27. Qf3 {[%clk
00:11:08]} {[%emt 00:00:39]} Bd3 {[%clk 00:14:41]} {[%emt 00:00:31]} 28. e4
{[%clk 00:09:57]} {[%emt 00:01:18]} Re8 {[%clk 00:14:32]} {[%emt 00:00:12]} 29.
Qf6 {[%clk 00:09:01]} {[%emt 00:01:02]} Qg4 {[%clk 00:13:58]} {[%emt 00:00:37]}
30. Rc7 {[%clk 00:07:36]} {[%emt 00:01:33]} Qd1+ {[%clk 00:13:38]} {[%emt
00:00:23]} 31. Kf2 {[%clk 00:07:34]} {[%emt 00:00:08]} Qe2+ {[%clk 00:13:23]}
{[%emt 00:00:17]} 32. Kg3 {[%clk 00:07:25]} {[%emt 00:00:16]} Qe3+ {[%clk
00:13:26]} {[%emt 00:00:03]} 33. Kh4 {[%clk 00:07:03]} {[%emt 00:00:26]} Qxe4+
{[%clk 00:12:51]} {[%emt 00:00:40]} 34. Kh3 {[%clk 00:06:07]} {[%emt 00:01:01]}
Qf5+ {[%clk 00:12:32]} {[%emt 00:00:25]} 35. Qxf5 {[%clk 00:06:08]} {[%emt
00:00:04]} Bxf5+ {[%clk 00:12:35]} {[%emt 00:00:01]} 36. g4 {[%clk 00:06:03]}
{[%emt 00:00:10]} Bc2 {[%clk 00:11:53]} {[%emt 00:00:47]} 37. cxb6 {[%clk
00:06:04]} {[%emt 00:00:05]} axb6 {[%clk 00:11:56]} {[%emt 00:00:02]} 38. Rxc4
{[%clk 00:06:07]} {[%emt 00:00:01]} Bb3 {[%clk 00:11:58]} {[%emt 00:00:03]} 39.
Rd4 {[%clk 00:05:49]} {[%emt 00:00:23]} Rxe5 {[%clk 00:11:54]} {[%emt
00:00:09]} 40. d6 {[%clk 00:05:52]} {[%emt 00:00:02]} Re8 {[%clk 00:11:58]}
{[%emt 00:00:01]} 41. d7 {[%clk 00:05:54]} {[%emt 00:00:03]} Rd8 {[%clk
00:12:03]} {[%emt 00:00:01]} 42. Kg3 {[%clk 00:05:40]} {[%emt 00:00:19]} Be6
{[%clk 00:12:06]} {[%emt 00:00:01]} 43. Rd6 {[%clk 00:05:27]} {[%emt 00:00:18]}
Rxd7 {[%clk 00:12:05]} {[%emt 00:00:06]} 44. Rxb6 {[%clk 00:05:30]} {[%emt
00:00:02]} Rd3+ {[%clk 00:12:09]} {[%emt 00:00:02]} 45. Kf4 {[%clk 00:05:27]}
{[%emt 00:00:08]} Rxa3 {[%clk 00:12:09]} {[%emt 00:00:04]} 46. h4 {[%clk
00:05:28]} {[%emt 00:00:04]} Ra4+ {[%clk 00:12:12]} {[%emt 00:00:02]} 47. Kg5
{[%clk 00:04:42]} {[%emt 00:00:46]} Kg7 {[%clk 00:12:11]} {[%emt 00:00:12]} 48.
h5 {[%clk 00:04:40]} {[%emt 00:00:06]} Rxg4# {[%emt 00:00:03]} 0-1

[Event "MCR rapid mládeže 2023 U16"]
[Site "Harachov, Czech Republic"]
[Date "2023.09.09"]
[Round "4.28"]
[White "Mojzisova, Barbora"]
[Black "Hujova, Tess"]
[Result "0-1"]
[TimeControl "20min+5s/move"]
[WhiteElo "1220"]
[BlackElo "1104"]

1. e4 {[%clk 00:20:07]} {[%emt 00:00:02]} e6 {[%clk 00:20:09]} {[%emt
00:00:01]} 2. d4 {[%clk 00:20:11]} {[%emt 00:00:02]} b6 {[%clk 00:20:13]}
{[%emt 00:00:02]} 3. Nc3 {[%clk 00:20:12]} {[%emt 00:00:03]} Bb7 {[%clk
00:20:17]} {[%emt 00:00:02]} 4. Nf3 {[%clk 00:20:09]} {[%emt 00:00:08]} Bb4
{[%clk 00:20:20]} {[%emt 00:00:02]} 5. Bd3 {[%clk 00:19:53]} {[%emt 00:00:18]}
Nf6 {[%clk 00:20:20]} {[%emt 00:00:06]} 6. Qe2 {[%clk 00:19:18]} {[%emt
00:00:39]} O-O {[%clk 00:20:19]} {[%emt 00:00:08]} 7. Bd2 {[%clk 00:19:10]}
{[%emt 00:00:13]} d6 {[%clk 00:20:17]} {[%emt 00:00:07]} 8. a3 {[%clk
00:19:08]} {[%emt 00:00:06]} Bxc3 {[%clk 00:20:19]} {[%emt 00:00:04]} 9. Bxc3
{[%clk 00:19:10]} {[%emt 00:00:03]} Nbd7 {[%clk 00:20:18]} {[%emt 00:00:06]} 10.
O-O {[%clk 00:19:06]} {[%emt 00:00:09]} c5 {[%clk 00:20:04]} {[%emt 00:00:18]}
11. dxc5 {[%clk 00:18:46]} {[%emt 00:00:25]} Nxc5 {[%clk 00:20:05]} {[%emt
00:00:04]} 12. e5 {[%clk 00:18:29]} {[%emt 00:00:22]} dxe5 {[%clk 00:19:58]}
{[%emt 00:00:13]} 13. Nxe5 {[%clk 00:18:06]} {[%emt 00:00:27]} Qd5 {[%clk
00:19:06]} {[%emt 00:00:57]} 14. Nf3 {[%clk 00:17:26]} {[%emt 00:00:44]} Nxd3
{[%clk 00:18:26]} {[%emt 00:00:46]} 15. Qxd3 {[%clk 00:17:03]} {[%emt
00:00:28]} Qxd3 {[%clk 00:18:12]} {[%emt 00:00:20]} 16. cxd3 {[%clk 00:17:04]}
{[%emt 00:00:03]} Bxf3 {[%clk 00:18:01]} {[%emt 00:00:17]} 17. gxf3 {[%clk
00:17:06]} {[%emt 00:00:04]} Nd5 {[%clk 00:17:42]} {[%emt 00:00:23]} 18. Rac1
{[%clk 00:16:41]} {[%emt 00:00:29]} Nf4 {[%clk 00:17:06]} {[%emt 00:00:40]} 19.
Rcd1 {[%clk 00:15:40]} {[%emt 00:01:05]} Rfd8 {[%clk 00:16:17]} {[%emt
00:00:57]} 20. d4 {[%clk 00:15:13]} {[%emt 00:00:31]} Rac8 {[%clk 00:15:31]}
{[%emt 00:00:51]} 21. Rfe1 {[%clk 00:13:30]} {[%emt 00:01:41]} Nd5 {[%clk
00:14:34]} {[%emt 00:01:09]} 22. Rc1 {[%clk 00:12:59]} {[%emt 00:00:34]} Nf4
{[%clk 00:11:55]} {[%emt 00:02:48]} 23. Rcd1 {[%clk 00:12:56]} {[%emt
00:00:06]} Nd5 {[%clk 00:11:48]} {[%emt 00:00:13]} 24. Rc1 {[%clk 00:12:27]}
{[%emt 00:00:34]} Nxc3 {[%clk 00:11:48]} {[%emt 00:00:04]} 25. bxc3 {[%clk
00:12:17]} {[%emt 00:00:15]} Rc4 {[%clk 00:11:20]} {[%emt 00:00:33]} 26. Re3
{[%clk 00:11:43]} {[%emt 00:00:36]} Kf8 {[%clk 00:10:49]} {[%emt 00:00:41]} 27.
Kf1 {[%clk 00:11:42]} {[%emt 00:00:05]} Ke7 {[%clk 00:10:48]} {[%emt 00:00:05]}
28. Ke1 {[%clk 00:11:38]} {[%emt 00:00:08]} Ra4 {[%clk 00:10:46]} {[%emt
00:00:08]} 29. Ra1 {[%clk 00:11:30]} {[%emt 00:00:13]} Rc8 {[%clk 00:10:45]}
{[%emt 00:00:06]} 30. Kd2 {[%clk 00:11:21]} {[%emt 00:00:09]} Ra5 {[%clk
00:10:19]} {[%emt 00:00:35]} 31. Kc2 {[%clk 00:10:33]} {[%emt 00:00:49]} Rh5
{[%clk 00:10:17]} {[%emt 00:00:12]} 32. Rh1 {[%clk 00:10:30]} {[%emt 00:00:07]}
Rh4 {[%clk 00:09:46]} {[%emt 00:00:37]} 33. Re4 {[%clk 00:10:07]} {[%emt
00:00:24]} Rh3 {[%clk 00:09:41]} {[%emt 00:00:15]} 34. Re3 {[%clk 00:10:01]}
{[%emt 00:00:08]} Kd6 {[%clk 00:09:42]} {[%emt 00:00:06]} 35. Kb3 {[%clk
00:09:35]} {[%emt 00:00:22]} Re8 {[%clk 00:09:33]} {[%emt 00:00:23]} 36. Kc4
{[%clk 00:08:36]} {[%emt 00:01:02]} a6 {[%clk 00:09:28]} {[%emt 00:00:14]} 37.
a4 {[%clk 00:08:15]} {[%emt 00:00:25]} Rh4 {[%clk 00:09:16]} {[%emt 00:00:16]}
38. Re4 {[%clk 00:07:46]} {[%emt 00:00:26]} Rh3 {[%clk 00:09:20]} {[%emt
00:00:10]} 39. Re3 {[%clk 00:07:47]} {[%emt 00:00:03]} Rb8 {[%clk 00:09:01]}
{[%emt 00:00:24]} 40. Kb4 {[%clk 00:07:18]} {[%emt 00:00:32]} b5 {[%clk
00:09:03]} {[%emt 00:00:06]} 41. axb5 {[%clk 00:06:55]} {[%emt 00:00:28]} Rxb5+
{[%clk 00:09:06]} {[%emt 00:00:01]} 42. Ka4 {[%clk 00:06:52]} {[%emt 00:00:08]}
Rb2 {[%clk 00:09:07]} {[%emt 00:00:04]} 43. Ka5 {[%clk 00:06:50]} {[%emt
00:00:04]} Rxf2 {[%clk 00:09:02]} {[%emt 00:00:14]} 44. Kxa6 {[%clk 00:06:44]}
{[%emt 00:00:11]} Rhxf3 {[%clk 00:08:50]} {[%emt 00:00:17]} 45. Rxf3 {[%clk
00:06:46]} {[%emt 00:00:03]} Rxf3 {[%clk 00:08:53]} {[%emt 00:00:02]} 46. c4
{[%clk 00:06:25]} {[%emt 00:00:26]} Rd3 {[%clk 00:08:50]} {[%emt 00:00:07]} 47.
c5 {[%clk 00:06:12]} {[%emt 00:00:19]} Kc6 {[%clk 00:08:53]} {[%emt 00:00:02]}
48. Ka5 {[%clk 00:06:01]} {[%emt 00:00:10]} Rxd4 {[%clk 00:08:54]} {[%emt
00:00:09]} 49. Rc1 {[%clk 00:06:04]} {[%emt 00:00:03]} f5 {[%clk 00:08:41]}
{[%emt 00:00:17]} 50. Re1 {[%clk 00:05:44]} {[%emt 00:00:26]} Re4 {[%clk
00:08:43]} {[%emt 00:00:02]} 51. Rc1 {[%clk 00:05:40]} {[%emt 00:00:09]} f4
{[%clk 00:08:46]} {[%emt 00:00:02]} 52. Rg1 {[%clk 00:05:31]} {[%emt 00:00:14]}
g6 {[%clk 00:08:49]} {[%emt 00:00:03]} 53. Rg4 {[%clk 00:05:13]} {[%emt
00:00:23]} Kxc5 {[%clk 00:08:46]} {[%emt 00:00:07]} 54. Rh4 {[%clk 00:05:03]}
{[%emt 00:00:14]} e5 {[%clk 00:08:39]} {[%emt 00:00:14]} 55. Rxh7 {[%clk
00:05:02]} {[%emt 00:00:06]} f3 {[%clk 00:08:35]} {[%emt 00:00:09]} 56. Rc7
{[%clk 00:04:59]} {[%emt 00:00:07]} Kd4 {[%clk 00:08:38]} {[%emt 00:00:03]} 57.
Rd7+ {[%clk 00:04:41]} {[%emt 00:00:24]} Ke3 {[%clk 00:08:41]} {[%emt
00:00:01]} 58. Rb7 {[%clk 00:04:34]} {[%emt 00:00:09]} Rd4 {[%clk 00:08:28]}
{[%emt 00:00:21]} 59. Re7 {[%clk 00:04:22]} {[%emt 00:00:16]} e4 {[%clk
00:08:28]} {[%emt 00:00:05]} 60. Rf7 {[%clk 00:03:40]} {[%emt 00:00:48]} f2
{[%clk 00:08:29]} {[%emt 00:00:03]} 61. Kb5 {[%clk 00:03:37]} {[%emt 00:00:08]}
Rd1 {[%clk 00:08:32]} {[%emt 00:00:02]} 62. Kc4 {[%clk 00:03:29]} {[%emt
00:00:13]} f1=Q+ {[%clk 00:08:34]} {[%emt 00:00:04]} 63. Rxf1 {[%clk 00:03:31]}
{[%emt 00:00:02]} Rxf1 {[%clk 00:08:37]} {[%emt 00:00:03]} 64. h4 {[%clk
00:03:31]} {[%emt 00:00:04]} Rd1 {[%clk 00:08:38]} {[%emt 00:00:04]} 65. Kd4+
{[%clk 00:03:23]} {[%emt 00:00:11]} 0-1

[Event "MCR rapid mládeže 2023 U16"]
[Site "Harachov, Czech Republic"]
[Date "2023.09.09"]
[Round "4.29"]
[White "Fadrny, Jachym"]
[Black "Vo, Daniel"]
[Result "1-0"]
[TimeControl "20min+5s/move"]
[WhiteElo "1347"]
[BlackElo "1445"]

1. e4 {[%clk 00:20:07]} {[%emt 00:00:02]} c5 {[%clk 00:20:07]} {[%emt
00:00:04]} 2. Nf3 {[%clk 00:20:10]} {[%emt 00:00:01]} d6 {[%clk 00:20:10]}
{[%emt 00:00:03]} 3. d4 {[%clk 00:20:14]} {[%emt 00:00:01]} cxd4 {[%clk
00:20:14]} {[%emt 00:00:02]} 4. Nxd4 {[%clk 00:20:17]} {[%emt 00:00:01]} Nf6
{[%clk 00:20:16]} {[%emt 00:00:02]} 5. Nc3 {[%clk 00:20:21]} {[%emt 00:00:02]}
a6 {[%clk 00:20:19]} {[%emt 00:00:03]} 6. Bc4 {[%clk 00:20:07]} {[%emt
00:00:18]} e6 {[%clk 00:20:13]} {[%emt 00:00:11]} 7. O-O {[%clk 00:19:52]}
{[%emt 00:00:19]} Be7 {[%clk 00:20:12]} {[%emt 00:00:06]} 8. Be3 {[%clk
00:19:43]} {[%emt 00:00:13]} Qc7 {[%clk 00:20:00]} {[%emt 00:00:18]} 9. Qe2
{[%clk 00:19:10]} {[%emt 00:00:39]} b5 {[%clk 00:19:53]} {[%emt 00:00:11]} 10.
Bb3 {[%clk 00:19:10]} {[%emt 00:00:06]} O-O {[%clk 00:19:06]} {[%emt 00:00:52]}
11. a4 {[%clk 00:18:57]} {[%emt 00:00:18]} bxa4 {[%clk 00:18:33]} {[%emt
00:00:38]} 12. Nxa4 {[%clk 00:18:25]} {[%emt 00:00:38]} Nbd7 {[%clk 00:18:20]}
{[%emt 00:00:17]} 13. Nc3 {[%clk 00:15:37]} {[%emt 00:02:53]} Nc5 {[%clk
00:17:03]} {[%emt 00:01:22]} 14. f3 {[%clk 00:13:40]} {[%emt 00:02:02]} Nxb3
{[%clk 00:14:02]} {[%emt 00:03:06]} 15. Nxb3 {[%clk 00:13:28]} {[%emt
00:00:17]} Bb7 {[%clk 00:13:19]} {[%emt 00:00:48]} 16. Na4 {[%clk 00:13:00]}
{[%emt 00:00:33]} Nd7 {[%clk 00:13:01]} {[%emt 00:00:23]} 17. Rfd1 {[%clk
00:12:38]} {[%emt 00:00:27]} Bc6 {[%clk 00:12:11]} {[%emt 00:00:52]} 18. Nc3
{[%clk 00:12:38]} {[%emt 00:00:07]} Bb7 {[%clk 00:11:25]} {[%emt 00:00:51]} 19.
Na5 {[%clk 00:11:34]} {[%emt 00:01:10]} Rfc8 {[%clk 00:10:12]} {[%emt
00:01:09]} 20. Nxb7 {[%clk 00:10:37]} {[%emt 00:01:11]} Qxb7 {[%clk 00:10:06]}
{[%emt 00:00:10]} 21. Bd4 {[%clk 00:10:08]} {[%emt 00:00:35]} e5 {[%clk
00:09:33]} {[%emt 00:00:38]} 22. Nd5 {[%clk 00:10:11]} {[%emt 00:00:02]} Nf6
{[%clk 00:06:47]} {[%emt 00:02:51]} 23. Nxe7+ {[%clk 00:09:53]} {[%emt
00:00:23]} Qxe7 {[%clk 00:06:46]} {[%emt 00:00:06]} 24. Bc3 {[%clk 00:09:56]}
{[%emt 00:00:02]} Rc6 {[%clk 00:06:24]} {[%emt 00:00:25]} 25. Qd3 {[%clk
00:09:11]} {[%emt 00:00:52]} h6 {[%clk 00:05:15]} {[%emt 00:01:14]} 26. b4
{[%clk 00:09:05]} {[%emt 00:00:11]} Rac8 {[%clk 00:05:08]} {[%emt 00:00:10]} 27.
Be1 {[%clk 00:08:14]} {[%emt 00:00:58]} Ne8 {[%clk 00:02:41]} {[%emt 00:02:31]}
28. Rxa6 {[%clk 00:07:12]} {[%emt 00:01:08]} Rxc2 {[%clk 00:02:22]} {[%emt
00:00:24]} 29. Rd2 {[%clk 00:06:46]} {[%emt 00:00:31]} Rc1 {[%clk 00:01:29]}
{[%emt 00:00:58]} 30. Rd1 {[%clk 00:06:45]} {[%emt 00:00:06]} Rxd1 {[%clk
00:01:28]} {[%emt 00:00:04]} 31. Qxd1 {[%clk 00:06:48]} {[%emt 00:00:04]} Qb7
{[%clk 00:01:30]} {[%emt 00:00:03]} 32. Ra5 {[%clk 00:06:00]} {[%emt 00:00:52]}
Qb6+ {[%clk 00:01:22]} {[%emt 00:00:14]} 33. Kf1 {[%clk 00:05:41]} {[%emt
00:00:24]} f6 {[%clk 00:01:15]} {[%emt 00:00:12]} 34. Qb3+ {[%clk 00:05:02]}
{[%emt 00:00:44]} Kh8 {[%clk 00:01:18]} {[%emt 00:00:02]} 35. Ra1 {[%clk
00:04:25]} {[%emt 00:00:43]} Qd4 {[%clk 00:01:12]} {[%emt 00:00:12]} 36. Rd1
{[%clk 00:04:25]} {[%emt 00:00:04]} Qb6 {[%clk 00:01:06]} {[%emt 00:00:10]} 37.
Qd3 {[%clk 00:03:00]} {[%emt 00:01:29]} Kh7 {[%clk 00:00:57]} {[%emt 00:00:16]}
38. f4 {[%clk 00:02:22]} {[%emt 00:00:42]} Kh8 {[%clk 00:00:47]} {[%emt
00:00:16]} 39. fxe5 {[%clk 00:01:55]} {[%emt 00:00:31]} dxe5 {[%clk 00:00:46]}
{[%emt 00:00:06]} 40. Qd7 {[%clk 00:01:35]} {[%emt 00:00:24]} Qb8 {[%clk
00:00:41]} {[%emt 00:00:12]} 41. b5 {[%clk 00:01:04]} {[%emt 00:00:35]} Nc7
{[%clk 00:00:37]} {[%emt 00:00:09]} 42. b6 {[%clk 00:01:00]} {[%emt 00:00:10]}
Na6 {[%clk 00:00:15]} {[%emt 00:00:26]} 43. b7 {[%clk 00:00:53]} {[%emt
00:00:14]} Rf8 {[%clk 00:00:17]} {[%emt 00:00:01]} 44. Rc1 {[%clk 00:00:27]}
{[%emt 00:00:29]} 1-0

[Event "MCR rapid mládeže 2023 U16"]
[Site "Harachov, Czech Republic"]
[Date "2023.09.09"]
[Round "4.30"]
[White "Kozusnik, Jan"]
[Black "Gernert , Tomas"]
[Result "0-1"]
[TimeControl "20min+5s/move"]
[WhiteElo "1399"]
[BlackElo "1236"]

1. e4 {[%clk 00:20:08]} {[%emt 00:00:02]} c5 {[%clk 00:20:09]} {[%emt
00:00:02]} 2. Nf3 {[%clk 00:20:02]} {[%emt 00:00:11]} Nc6 {[%clk 00:20:13]}
{[%emt 00:00:01]} 3. d4 {[%clk 00:20:05]} cxd4 {[%clk 00:20:18]} {[%emt
00:00:01]} 4. Nxd4 {[%clk 00:20:09]} {[%emt 00:00:01]} g6 {[%clk 00:20:22]} 5.
Be3 {[%clk 00:19:58]} {[%emt 00:00:16]} Bg7 {[%clk 00:20:26]} {[%emt 00:00:02]}
6. Nc3 {[%clk 00:20:00]} {[%emt 00:00:03]} Nf6 {[%clk 00:20:29]} {[%emt
00:00:02]} 7. Qd2 {[%clk 00:19:52]} {[%emt 00:00:12]} d5 {[%clk 00:20:32]}
{[%emt 00:00:02]} 8. Bb5 {[%clk 00:18:11]} {[%emt 00:01:46]} Bd7 {[%clk
00:17:48]} {[%emt 00:02:50]} 9. exd5 {[%clk 00:17:26]} {[%emt 00:00:49]} Nb4
{[%clk 00:17:03]} {[%emt 00:00:50]} 10. a3 {[%clk 00:15:35]} {[%emt 00:01:56]}
Nbxd5 {[%clk 00:16:30]} {[%emt 00:00:39]} 11. Bxd7+ {[%clk 00:14:34]} {[%emt
00:01:06]} Qxd7 {[%clk 00:15:49]} {[%emt 00:00:46]} 12. O-O-O {[%clk 00:10:23]}
{[%emt 00:04:16]} Nxe3 {[%clk 00:15:29]} {[%emt 00:00:24]} 13. Qxe3 {[%clk
00:09:38]} {[%emt 00:00:50]} O-O {[%clk 00:14:38]} {[%emt 00:00:56]} 14. Rhe1
{[%clk 00:08:34]} {[%emt 00:01:09]} e6 {[%clk 00:13:28]} {[%emt 00:01:16]} 15.
Nf5 {[%clk 00:06:47]} {[%emt 00:01:51]} Qc7 {[%clk 00:11:54]} {[%emt 00:01:38]}
16. Nxg7 {[%clk 00:06:30]} {[%emt 00:00:23]} Kxg7 {[%clk 00:11:57]} {[%emt
00:00:02]} 17. h4 {[%clk 00:05:53]} {[%emt 00:00:43]} Rfd8 {[%clk 00:11:43]}
{[%emt 00:00:18]} 18. f3 {[%clk 00:05:08]} {[%emt 00:00:50]} Rac8 {[%clk
00:11:44]} {[%emt 00:00:04]} 19. g4 {[%clk 00:05:07]} {[%emt 00:00:07]} Nd5
{[%clk 00:11:43]} {[%emt 00:00:06]} 20. Qd4+ {[%clk 00:03:11]} {[%emt
00:01:58]} Kg8 {[%clk 00:11:43]} {[%emt 00:00:07]} 21. Rd2 {[%clk 00:01:36]}
{[%emt 00:01:40]} Nxc3 {[%clk 00:10:45]} {[%emt 00:01:04]} 22. Qxc3 {[%clk
00:01:23]} {[%emt 00:00:18]} Qxc3 {[%clk 00:10:40]} {[%emt 00:00:09]} 23. bxc3
{[%clk 00:01:25]} {[%emt 00:00:03]} Rxd2 {[%clk 00:10:37]} {[%emt 00:00:08]} 24.
Kxd2 {[%clk 00:01:29]} {[%emt 00:00:02]} Rd8+ {[%clk 00:10:41]} {[%emt
00:00:01]} 25. Ke3 {[%clk 00:01:20]} {[%emt 00:00:13]} f5 {[%clk 00:10:09]}
{[%emt 00:00:38]} 26. g5 {[%clk 00:00:38]} {[%emt 00:00:47]} Kf7 {[%clk
00:10:10]} {[%emt 00:00:04]} 27. f4 {[%clk 00:00:27]} {[%emt 00:00:15]} Ke7
{[%clk 00:10:11]} {[%emt 00:00:04]} 28. Rb1 {[%clk 00:00:28]} {[%emt 00:00:04]}
b6 {[%clk 00:10:11]} {[%emt 00:00:06]} 29. c4 {[%clk 00:00:09]} {[%emt
00:00:24]} Rc8 {[%clk 00:10:12]} {[%emt 00:00:03]} 30. Kd3 {[%clk 00:00:13]}
Kd6 {[%clk 00:10:13]} {[%emt 00:00:06]} 31. Rb5 {[%clk 00:00:08]} {[%emt
00:00:10]} Rc5 {[%clk 00:09:58]} {[%emt 00:00:20]} 32. Rxc5 {[%clk 00:00:06]}
{[%emt 00:00:07]} bxc5 {[%clk 00:09:32]} {[%emt 00:00:30]} 33. c3 {[%clk
00:00:06]} {[%emt 00:00:06]} e5 {[%clk 00:09:33]} {[%emt 00:00:03]} 34. Ke3
{[%clk 00:00:06]} {[%emt 00:00:06]} e4 {[%clk 00:09:28]} {[%emt 00:00:10]} 35.
a4 {[%emt 00:00:06]} Kc6 {[%clk 00:09:31]} 36. Ke2 {[%clk 00:00:09]} Kb6 {[%clk
00:09:36]} {[%emt 00:00:01]} 37. Ke3 {[%clk 00:00:13]} Ka5 {[%clk 00:09:40]}
{[%emt 00:00:01]} 0-1